fUSD/lending_fUSD_20260305
["ID","MTS","AMOUNT","RATE_DAILY","PERIOD"]
[407705926,1772694643922,-800.0,0.00046294,13]
[407705927,1772694643945,-800.0,0.00046294,13]
[407705928,1772694643962,-800.0,0.00046294,13]
[407705930,1772694643983,-800.0,0.00046294,13]
[407705931,1772694644001,-800.0,0.00046294,13]
[407705932,1772694644022,-800.0,0.00046294,13]
[407705933,1772694644042,-800.0,0.00046294,13]
[407705934,1772694644060,-800.0,0.00046294,13]
[407705935,1772694644083,-800.0,0.00046294,13]
[407705936,1772694644098,-800.0,0.00046294,13]
[407705937,1772694644119,-800.0,0.00046294,13]
[407705938,1772694644132,-864.0,0.00046294,13]
[407705939,1772694644150,-485.13,0.000463,14]
[407705940,1772694644167,-238.48776007,0.000463,120]
[407705941,1772694644181,-156.53,0.000463,120]
[407705942,1772694644198,-428.51371254,0.000463,28]
[407705943,1772694644218,-2288.49423229,0.000463,2]
[407705944,1772694644235,-218.68689987,0.0004634,120]
[407705945,1772694644252,-168.0,0.00046363,2]
[407705946,1772694644269,-241.48038694,0.00046378,2]
[407705947,1772694644284,-1526.72766708,0.0004639,7]
[407705948,1772694644300,-500.0,0.00046399,120]
[407705949,1772694644316,-500.0,0.00046399,120]
[407705950,1772694644331,-500.0,0.00046399,120]
[407705951,1772694644346,-500.0,0.00046399,120]
[407705952,1772694644361,-500.0,0.00046399,120]
[407705953,1772694644376,-184.48,0.00046399,120]
[407705954,1772694644391,-500.0,0.00046399,120]
[407705955,1772694644406,-500.0,0.00046399,120]
[407705956,1772694644420,-500.0,0.00046399,120]
[407705957,1772694644434,-515.39068237,0.00046399,120]
[407705958,1772694644449,-695.47,0.00046399,120]
[407705959,1772694644464,-695.47,0.00046399,120]
[407705960,1772694644478,-695.47,0.00046399,120]
[407705961,1772694644501,-695.47,0.00046399,120]
[407705962,1772694644520,-695.47,0.00046399,120]
[407705963,1772694644541,-695.47,0.00046399,120]
[407705964,1772694644557,-695.47,0.00046399,120]
[407705965,1772694644574,-695.47,0.00046399,120]
[407705966,1772694644590,-695.47,0.00046399,120]
[407705967,1772694644605,-695.47,0.00046399,120]
[407705968,1772694644622,-695.47,0.00046399,120]
[407705969,1772694644638,-695.47,0.00046399,120]
[407705970,1772694644652,-695.47,0.00046399,120]
[407705971,1772694644674,-695.47,0.00046399,120]
[407705972,1772694644692,-695.47,0.00046399,120]
[407705973,1772694644710,-695.47,0.00046399,120]
[407705974,1772694644726,-695.47,0.00046399,120]
[407705975,1772694644742,-695.47,0.00046399,120]
[407705976,1772694644757,-695.47,0.00046399,120]
[407705977,1772694644773,-695.47,0.00046399,120]
[407705978,1772694644791,-695.47,0.00046399,120]
[407705979,1772694644804,-695.47,0.00046399,120]
[407705980,1772694644815,-500.0,0.00046399,2]
[407705981,1772694644827,-500.0,0.00046399,2]
[407705982,1772694644837,-500.0,0.00046399,2]
[407705983,1772694644848,-500.0,0.00046399,2]
[407705984,1772694644858,-500.0,0.00046399,2]
[407705985,1772694644868,-500.0,0.00046399,2]
[407705986,1772694644877,-500.0,0.00046399,2]
[407705987,1772694644887,-500.0,0.00046399,2]
[407705988,1772694644896,-500.0,0.00046399,2]
[407705989,1772694644905,-500.0,0.00046399,2]
[407705990,1772694645104,-500.0,0.00046399,2]
[407705991,1772694645125,-500.0,0.00046399,2]
[407705992,1772694645138,-500.0,0.00046399,2]
[407705993,1772694645147,-500.0,0.00046399,2]
[407705994,1772694645156,-500.0,0.00046399,120]
[407705995,1772694645165,-500.0,0.00046399,120]
[407705996,1772694645180,-500.0,0.00046399,120]
[407705997,1772694645200,-500.0,0.00046399,120]
[407705998,1772694645222,-500.0,0.00046399,120]
[407705999,1772694645243,-500.0,0.00046399,120]
[407706000,1772694645265,-333.28,0.00046399,120]
[407706001,1772694645287,-581.07389761,0.00046399,120]
[407706002,1772694645309,-533.92910556,0.00046399,120]
[407706003,1772694645331,-619.65,0.00046399,120]
[407706004,1772694645354,-619.65,0.00046399,120]
[407706005,1772694645375,-619.65,0.00046399,120]
[407706006,1772694645398,-619.65,0.00046399,120]
[407706007,1772694645421,-619.65,0.00046399,120]
[407706008,1772694645443,-619.65,0.00046399,120]
[407706009,1772694645466,-619.65,0.00046399,120]
[407706010,1772694645488,-619.65,0.00046399,120]
[407706011,1772694645512,-619.65,0.00046399,120]
[407706012,1772694645529,-619.65,0.00046399,120]
[407706013,1772694645542,-619.65,0.00046399,120]
[407706014,1772694645551,-619.65,0.00046399,120]
[407706015,1772694645561,-619.65,0.00046399,120]
[407706016,1772694645571,-619.65,0.00046399,120]
[407706017,1772694645581,-619.65,0.00046399,120]
[407706018,1772694645590,-619.65,0.00046399,120]
[407706019,1772694645599,-619.65,0.00046399,120]
[407706020,1772694645612,-619.65,0.00046399,120]
[407706021,1772694645621,-619.65,0.00046399,120]
[407706022,1772694645630,-619.65,0.00046399,120]
[407706023,1772694645640,-619.65,0.00046399,120]
[407706024,1772694645649,-619.82,0.00046399,120]
[407706025,1772694645659,-500.0,0.00046399,30]
[407706026,1772694645669,-500.0,0.00046399,30]
[407706027,1772694645678,-500.0,0.00046399,30]
[407706028,1772694645687,-500.0,0.00046399,30]
[407706029,1772694645697,-500.0,0.00046399,30]
[407706030,1772694645706,-500.0,0.00046399,30]
[407706031,1772694645715,-500.0,0.00046399,30]
[407706032,1772694645724,-500.0,0.00046399,30]
[407706033,1772694645733,-500.0,0.00046399,30]
[407706034,1772694645742,-500.0,0.00046399,30]
[407706035,1772694645751,-500.0,0.00046399,30]
[407706036,1772694645761,-500.0,0.00046399,45]
[407706037,1772694645770,-500.0,0.00046399,45]
[407706038,1772694645779,-500.0,0.00046399,45]
[407706039,1772694645789,-500.0,0.00046399,45]
[407706040,1772694645798,-500.0,0.00046399,45]
[407706041,1772694645807,-500.0,0.00046399,45]
[407706042,1772694645816,-500.0,0.00046399,45]
[407706043,1772694645826,-500.0,0.00046399,45]
[407706044,1772694645835,-500.0,0.00046399,45]
[407706045,1772694645844,-500.0,0.00046399,45]
[407706046,1772694645854,-500.0,0.00046399,45]
[407706047,1772694645864,-500.0,0.00046399,45]
[407706048,1772694645873,-500.0,0.00046399,45]
[407706049,1772694645882,-500.0,0.00046399,45]
[407706050,1772694645892,-500.0,0.00046399,45]
[407706051,1772694645901,-500.0,0.00046399,45]
[407706052,1772694645911,-500.0,0.00046399,45]
[407706053,1772694645920,-500.0,0.00046399,45]
[407706054,1772694645929,-500.0,0.00046399,45]
[407706055,1772694645939,-500.0,0.00046399,45]
[407706056,1772694645948,-500.0,0.00046399,45]
[407706057,1772694645958,-381.71920462,0.00046399,45]
[407706058,1772694645967,-500.0,0.00046399,120]
[407706059,1772694645976,-500.0,0.00046399,120]
[407706060,1772694645985,-500.0,0.00046399,120]
[407706061,1772694645993,-500.0,0.00046399,120]
[407706062,1772694646003,-500.0,0.00046399,120]
[407706063,1772694646013,-500.0,0.00046399,120]
[407706064,1772694646022,-500.0,0.00046399,120]
[407706065,1772694646031,-500.0,0.00046399,120]
[407706066,1772694646040,-500.0,0.00046399,120]
[407706067,1772694646049,-500.0,0.00046399,120]
[407706068,1772694646059,-500.0,0.00046399,120]
[407706069,1772694646067,-500.0,0.00046399,120]
[407706070,1772694646077,-500.0,0.00046399,120]
[407706071,1772694646086,-500.0,0.00046399,120]
[407706072,1772694646095,-500.0,0.00046399,120]
[407706073,1772694646104,-500.0,0.00046399,120]
[407706074,1772694646114,-500.0,0.00046399,120]
[407706075,1772694646123,-500.0,0.00046399,120]
[407706076,1772694646132,-500.0,0.00046399,120]
[407706077,1772694646141,-500.0,0.00046399,120]
[407706078,1772694646150,-551.6181156,0.00046399,120]
[407706079,1772694646159,-500.0,0.00046399,10]
[407706080,1772694646168,-500.0,0.00046399,10]
[407706081,1772694646177,-500.0,0.00046399,10]
[407706082,1772694646186,-500.0,0.00046399,120]
[407706083,1772694646195,-500.0,0.00046399,120]
[407706084,1772694646204,-500.0,0.00046399,120]
[407706085,1772694646213,-602.31279484,0.00046399,120]
[407706087,1772694646222,-500.0,0.00046399,120]
[407706088,1772694646231,-500.0,0.00046399,120]
[407706089,1772694646240,-500.0,0.00046399,120]
[407706090,1772694646249,-500.0,0.00046399,120]
[407706091,1772694646260,-500.0,0.00046399,120]
[407706092,1772694646270,-500.0,0.00046399,120]
[407706093,1772694646280,-500.0,0.00046399,120]
[407706094,1772694646289,-500.0,0.00046399,120]
[407706095,1772694646299,-500.0,0.00046399,120]
[407706096,1772694646309,-500.0,0.00046399,120]
[407706097,1772694646318,-500.0,0.00046399,120]
[407706098,1772694646327,-500.0,0.00046399,120]
[407706099,1772694646336,-500.0,0.00046399,120]
[407706100,1772694646345,-500.0,0.00046399,120]
[407706101,1772694646354,-458.63512086,0.00046399,120]
[407706102,1772694646363,-251.10426749,0.000464,120]
[407706103,1772694646373,-3388018.21848768,0.000464,120]
[407706104,1772694646396,-147604.3235436,0.000464,120]
[407706108,1772694647185,-4456.19158136,0.00027397,10]
[407706109,1772694647214,-6507.82841864,0.00027397,10]
[407706110,1772694647223,-500.0,0.00043068,120]
[407706111,1772694647232,-500.0,0.00043068,120]
[407706112,1772694647242,-500.0,0.00043068,120]
[407706113,1772694647251,-500.0,0.00043068,120]
[407706114,1772694647260,-2459.0,0.00044885,2]
[407706115,1772694647270,-415.78068127,0.000464,120]
[407706116,1772694647702,-500.0,0.00043068,120]
[407706117,1772694647712,-250.0,0.00043785,114]
[407706118,1772694647721,-250.0,0.00043835,115]
[407706119,1772694647731,-250.0,0.000439,117]
[407706120,1772694647740,-250.0,0.000439,117]
[407706121,1772694647749,-250.0,0.00043948,118]
[407706122,1772694647759,-250.0,0.00044,120]
[407706123,1772694647771,-250.0,0.00044,120]
[407706124,1772694647781,-138.3495719,0.000464,120]
[407706125,1772694647792,-700.03280235,0.000464,120]
[407706126,1772694647807,-24170.76400041,0.000464,120]
[407706127,1772694653824,500.0,0.000179,2]
[407706128,1772694735835,248.24429007,0.00012995,2]
[407706129,1772694735878,500.0,0.00012995,2]
[407706130,1772694736367,500.0,0.00012995,2]
[407706131,1772694736396,228.06401281,0.00012995,2]
[407706132,1772694736506,500.0,0.00012995,2]
[407706133,1772694736874,500.0,0.00012995,2]
[407706134,1772694736980,807.63217432,0.00012,2]
[407706135,1772694737874,500.0,0.00012,2]
[407706136,1772694738367,510.04779469,0.00012,2]
[407706137,1772694741095,482.32003099,0.00012995,2]
[407706138,1772694743377,500.0,0.00012995,2]
[407706139,1772694743953,500.0,0.00012995,2]
[407706140,1772694744438,500.0,0.00012995,2]
[407706141,1772694745230,500.0,0.00012995,2]
[407706142,1772694745413,500.0,0.00012,2]
[407706143,1772694745892,500.0,0.00012,2]
[407706144,1772694746371,541.66465208,0.00012,2]
[407706145,1772694819834,152.12,0.00017785,2]
[407706146,1772694834844,504.0,0.00014995,2]
[407706147,1772694842713,1025.91704504,0.0001799,2]
[407706148,1772694842738,10000.01,0.0001799,2]
[407706149,1772694842761,10000.01,0.0001799,2]
[407706150,1772694842785,10000.01,0.0001799,2]
[407706151,1772694842809,10000.01,0.0001799,2]
[407706152,1772694842832,10000.01,0.0001799,2]
[407706153,1772694842861,10000.01,0.0001799,2]
[407706154,1772694842886,10000.01,0.0001799,2]
[407706155,1772694842910,10000.01,0.0001799,2]
[407706156,1772694842933,10000.01,0.0001799,2]
[407706157,1772694853008,371.488057,0.000179,2]
[407706158,1772694866212,-9128.521943,0.0001799,2]
[407706159,1772694866284,-10000.01,0.0001799,2]
[407706160,1772694868707,-10000.01,0.0001799,2]
[407706161,1772694868812,-10000.01,0.0001799,2]
[407706162,1772694868950,-10000.01,0.0001799,2]
[407706163,1772695063231,153.08,0.0001679,2]
[407706168,1772695083343,500.40971882,0.00016973,2]
[407706184,1772695378758,5131.71312485,0.000169,2]
[407706185,1772695643818,3021.0,8.2e-07,120]
[407706186,1772695748297,-171.6339,0.00017,2]
[407706187,1772695748327,-171.6339,0.00017,2]
[407706188,1772695748358,-171.6339,0.00017,2]
[407706189,1772695748389,-171.6339,0.00017,2]
[407706190,1772695748418,-171.6339,0.00017,2]
[407706191,1772695748448,-171.6339,0.00017,2]
[407706192,1772695748477,-250.0,0.00017004,2]
[407706193,1772695748507,-300.0,0.00017008,2]
[407706194,1772695748537,-153.08,0.0001706,2]
[407706195,1772695748566,-166.66,0.00017138,2]
[407706196,1772695748598,-2700.46,0.00017297,2]
[407706197,1772695748628,-153.08,0.0001733,2]
[407706198,1772695751168,-1482.67,0.00017451,2]
[407706199,1772695751201,-166.66,0.00017498,2]
[407706200,1772695751231,-153.08,0.000176,2]
[407706201,1772695751261,-166.66,0.00017859,2]
[407706202,1772695751291,-153.08,0.0001787,2]
[407706203,1772695751320,-300.0,0.00017885,2]
[407706204,1772695751351,-1200.0,0.00017886,2]
[407706205,1772695751381,-275.0,0.00017887,2]
[407706206,1772695751410,-300.0,0.00017887,2]
[407706207,1772695754183,-4658.86410558,0.00017907,2]
[407706208,1772695754213,-132.28178884,0.00017989,2]
[407706209,1772695758038,-417.71821116,0.00017989,2]
[407706210,1772695758336,-345.834663,0.00017652,7]
[407706211,1772695758346,-6089.08372584,0.0001799,2]
[407706212,1772695766380,-10000.01,0.0001799,2]
[407706213,1772695772316,-10000.01,0.0001799,2]
[407706214,1772695775408,-10000.01,0.0001799,2]
[407706215,1772695775648,-10000.01,0.0001799,2]
[407706216,1772695778754,-10000.01,0.0001799,2]
[407706217,1772695781345,-10000.01,0.0001799,2]
[407706218,1772695781522,-10000.01,0.0001799,2]
[407706219,1772695786670,163.61,0.0001679,2]
[407706220,1772695787410,-163.61,0.0001706,2]
[407706221,1772695787441,-269.70265756,0.0001799,2]
[407706222,1772695787500,-9133.38468488,0.0001799,2]
[407706223,1772695793408,-163.61,0.0001733,2]
[407706224,1772695793442,-163.61,0.000176,2]
[407706225,1772695793473,-163.61,0.0001787,2]
[407706226,1772695793505,-425.05,0.00018,30]
[407706227,1772695793536,-163.61,0.0001814,2]
[407706228,1772695793567,-166.66,0.0001822,2]
[407706229,1772695793598,-500.0,0.00018306,2]
[407706230,1772695793629,-664.33793063,0.0001831,2]
[407706231,1772695793663,-151.0,0.00018395,2]
[407706232,1772695793694,-151.0,0.00018395,2]
[407706233,1772695793723,-192.63294048,0.00018395,2]
[407706234,1772695793752,-500.0,0.00018405,2]
[407706235,1772695793781,-500.0,0.00018405,2]
[407706236,1772695794249,-2189.76825778,0.00018406,2]
[407706237,1772695796456,-10000.01,0.00018406,2]
[407706238,1772695799620,-10000.01,0.00018406,2]
[407706239,1772695802537,-257.0,0.00018405,2]
[407706240,1772695802570,-1200.0,0.00018405,2]
[407706241,1772695802601,-300.0,0.00018405,2]
[407706242,1772695802751,-6486.01,0.00018406,2]
[407706243,1772695805735,-150.0,0.0001799,2]
[407706244,1772695805766,-150.0,0.00018405,2]
[407706245,1772695805797,-150.0,0.00018405,30]
[407706246,1772695805828,-308.0,0.00018405,2]
[407706247,1772695805948,-8484.01,0.00018406,2]
[407706250,1772695831433,-295.2073076,0.00018405,2]
[407706251,1772695831444,-204.7926924,0.00018405,2]
[407706252,1772695831453,-1682.72937914,0.00018406,2]
[407706253,1772695831464,-2629.25210029,0.00018406,2]
[407706254,1772695831476,-2889.8712743,0.00018406,2]
[407706255,1772695831487,-5674.79778011,0.00018406,2]
[407706256,1772695831498,-10749.43756616,0.00018406,2]
[407706257,1772695831509,-108580.28655922,0.00018406,2]
[407706258,1772695831519,-5000.0,0.00018408,2]
[407706259,1772695831529,-163.61,0.0001841,2]
[407706260,1772695831538,-5000.0,0.00018549,2]
[407706261,1772695831548,-166.66,0.00018581,2]
[407706262,1772695831557,-500.0,0.00018669,2]
[407706263,1772695831566,-163.61,0.0001868,2]
[407706264,1772695831576,-5000.0,0.000187,2]
[407706265,1772695831585,-250.0,0.000187,2]
[407706266,1772695831594,-300.0,0.000187,2]
[407706267,1772695831604,-250.0,0.000187,2]
[407706269,1772695831613,-166.66,0.00018942,2]
[407706270,1772695831626,-163.6,0.0001895,2]
[407706272,1772695831635,-150.0,0.00019178,2]
[407706273,1772695831644,-37790.703518,0.0001952,2]
[407706274,1772695831653,-670.3394532,0.00019549,2]
[407706275,1772695831662,-250.0,0.00019726,2]
[407706276,1772695831672,-8432.245728,0.00019769,2]
[407706277,1772695831681,-300.0,0.00019789,2]
[407706278,1772695831690,-300.0,0.00019789,2]
[407706279,1772695831699,-579.69660587,0.0001984,2]
[407706280,1772695831708,-970.0,0.00019841,2]
[407706282,1772695831718,-1113.0,0.0001988,2]
[407706284,1772695831727,-500.0,0.00019998,2]
[407706285,1772695831737,-500.0,0.00019999,2]
[407706286,1772695831747,-500.0,0.00019999,2]
[407706287,1772695831756,-500.0,0.00019999,2]
[407706288,1772695831766,-500.0,0.00019999,2]
[407706289,1772695831776,-500.0,0.00019999,2]
[407706290,1772695831786,-500.0,0.00019999,2]
[407706291,1772695831795,-500.0,0.00019999,2]
[407706292,1772695831805,-500.0,0.00019999,2]
[407706293,1772695831814,-500.0,0.00019999,2]
[407706294,1772695831823,-500.0,0.00019999,2]
[407706295,1772695831838,-500.0,0.00019999,2]
[407706296,1772695831854,-500.0,0.00019999,2]
[407706297,1772695831864,-500.0,0.00019999,2]
[407706298,1772695831875,-500.0,0.00019999,2]
[407706299,1772695831886,-500.0,0.00019999,2]
[407706300,1772695831895,-500.0,0.00019999,2]
[407706301,1772695831905,-500.0,0.00019999,2]
[407706302,1772695831916,-500.0,0.00019999,2]
[407706303,1772695831925,-500.0,0.00019999,2]
[407706304,1772695831935,-301.66091597,0.00019999,2]
[407706305,1772695831945,-72.33999482,0.00020074,2]
[407706306,1772695831957,-347.66000518,0.00020074,2]
[407706307,1772695831967,-1680.0,0.00020172,2]
[407706308,1772695831977,-250.0,0.00020246,2]
[407706309,1772695831986,-2463.64215827,0.00020247,2]
[407706310,1772695831995,-5000.0,0.00020247,2]
[407706311,1772695832005,-172.36236049,0.00020274,2]
[407706312,1772695832016,-177.63763951,0.00020274,2]
[407706313,1772695832026,-450.0,0.00020822,2]
[407706314,1772695832037,-550.0,0.0002137,2]
[407706315,1772695832047,-664.33793057,0.00021439,2]
[407706316,1772695832057,-587.0,0.00021894,2]
[407706317,1772695832270,-285.13107713,0.00021918,2]
[407706318,1772695832283,-364.86892287,0.00021918,2]
[407706319,1772695832293,-155.1026,0.00021918,2]
[407706320,1772695832303,-2351.0,0.00022108,2]
[407706321,1772695832313,-750.0,0.00022466,2]
[407706322,1772695832324,-160.0,0.00023,2]
[407706323,1772695832336,-850.0,0.00023014,2]
[407706324,1772695832347,-550.0,0.00023562,2]
[407706325,1772695832359,-300.0,0.00023878,2]
[407706326,1772695832370,-1378.72354536,0.0002423,2]
[407706327,1772695832384,-1285.27645464,0.0002423,2]
[407706328,1772695832395,-664.33793057,0.00024569,2]
[407706329,1772695832405,-500.0,0.00025929,2]
[407706330,1772695832415,-500.0,0.00025929,2]
[407706331,1772695832425,-292.81,0.0002652,2]
[407706332,1772695832434,-741.99,0.00027387,2]
[407706333,1772695832444,-500.0,0.00027395,2]
[407706334,1772695832454,-222.48252747,0.00027395,2]
[407706335,1772695832463,-516.41061763,0.00027395,2]
[407706336,1772695832474,-500.0,0.00027395,2]
[407706337,1772695832484,-235.03057136,0.00027395,2]
[407706338,1772695832496,-500.0,0.00027395,2]
[407706339,1772695832508,-373.76270079,0.00027395,2]
[407706340,1772695832520,-126.23729921,0.00027395,2]
[407706341,1772695832531,-172.20540665,0.00027395,2]
[407706342,1772695832559,-327.79459335,0.00027395,2]
[407706343,1772695832567,-500.0,0.00027395,2]
[407706344,1772695832577,-500.0,0.00027395,2]
[407706345,1772695832586,-345.02344893,0.00027395,2]
[407706346,1772695832598,-154.97655107,0.00027395,2]
[407706347,1772695832611,-500.0,0.00027395,2]
[407706348,1772695832620,-103.80344893,0.00027395,2]
[407706351,1772695837572,-1300.6176767,0.00027397,2]
[407706352,1772695837583,-8699.3723233,0.00027397,2]
[407706353,1772695837593,-9999.99,0.00027397,2]
[407706354,1772695837602,-150.99,0.00027397,2]
[407706355,1772695837612,-2299.47158387,0.00027397,2]
[407706356,1772695837624,-2992.09560657,0.00027397,2]
[407706357,1772695837780,-929.17280956,0.00027397,2]
[407706358,1772695837791,-2097.93,0.00027397,20]
[407706359,1772695837800,-299.99,0.00027397,12]
[407706360,1772695837810,-999.99,0.00027397,2]
[407706361,1772695837820,-5154.09880738,0.00027397,2]
[407706376,1772695839954,-2272.28656328,0.00027397,2]
[407706380,1772695845291,-704.25364157,0.00027397,2]
[407706381,1772695845303,-1869.35098777,0.00027397,2]
[407706382,1772695845312,-150.99,0.00027397,2]
[407706383,1772695845321,-664.33793057,0.00027698,2]
[407706385,1772695845330,-709.16,0.00028201,14]
[407706387,1772695845340,-365.64622083,0.00028475,14]
[407706391,1772695845439,-343.51377917,0.00028475,14]
[407706392,1772695845448,-709.16,0.00028749,14]
[407706393,1772695845457,-333.86341086,0.00029023,14]
[407706394,1772695845471,-375.29658914,0.00029023,14]
[407706395,1772695845480,-123.66459566,0.00029297,14]
[407706396,1772695845491,-585.49540434,0.00029297,14]
[407706397,1772695845500,-172.83237093,0.00029571,14]
[407706408,1772695883596,504.0,0.0001461,2]
[407706409,1772695910035,500.0,0.000169,2]
[407706410,1772695938576,-8996.01,0.0001789,2]
[407706411,1772695944454,-10000.01,0.0001789,2]
[407706412,1772695949801,-200.0,0.0001789,2]
[407706413,1772695964191,150.0,0.00016995,2]
[407706414,1772695981549,268.46,0.00016995,2]
[407706415,1772696021025,157.25,0.0001679,2]
[407706416,1772696135609,151.21,0.000115,2]
[407706417,1772696249796,504.0,0.00014,2]
[407706418,1772696271251,194.39,0.0001699,3]
[407706419,1772696281308,300.0,0.00016999,2]
[407706420,1772696312343,708.0,0.00016999,2]
[407706421,1772696342453,184.25917093,0.00016973,2]
[407706422,1772696342742,300.0,0.00016999,2]
[407706428,1772696401205,217.0,0.00016999,2]
[407706429,1772696401231,280.0,0.00016999,2]
[407706430,1772696401262,1200.0,0.00016999,2]
[407706431,1772696485141,9562.3815,0.000169,2]
[407706432,1772696489563,167.27,0.00016712,2]
[407706433,1772696503713,156.93,0.0001679,2]
[407706434,1772696522404,300.0,0.00016999,2]
[407706435,1772696523097,500.1029763,0.00016973,2]
[407706436,1772696536559,806.68838406,0.00012,2]
[407706437,1772696536646,500.0,0.00012,2]
[407706438,1772696542810,277.92447556,0.00012,2]
[407706439,1772696546060,192.95225901,0.00012,2]
[407706440,1772696581236,300.0,0.00016999,2]
[407706441,1772696582996,500.70639793,0.00016973,2]
[407706442,1772696585827,500.63657563,0.00016973,2]
[407706443,1772696586677,500.47518083,0.00016973,2]
[407706444,1772696612411,1200.0,0.00016999,2]
[407706445,1772696645975,500.61713446,0.00016973,2]
[407706446,1772696647338,507.13431696,0.00016973,2]
[407706447,1772696662874,549.62681041,0.000169,2]
[407706448,1772696694484,196.05,8.733e-05,2]
[407706449,1772696694658,196.05,9.193e-05,2]
[407706450,1772696694849,196.05,9.653e-05,2]
[407706451,1772696695049,196.05,0.00010112,2]
[407706452,1772696695412,196.05,0.00010572,2]
[407706453,1772696695456,196.05,0.00011032,2]
[407706454,1772696695857,196.05,0.00011491,2]
[407706455,1772696696062,196.05,0.00011951,2]
[407706456,1772696696321,196.05,0.00012411,2]
[407706457,1772696696476,196.05,0.0001287,2]
[407706458,1772696696665,196.05,0.0001333,2]
[407706459,1772696696858,196.05,0.00013789,2]
[407706460,1772696697051,196.05,0.00014249,2]
[407706461,1772696697246,196.05,0.00014709,2]
[407706462,1772696697435,196.05,0.00015168,2]
[407706463,1772696697649,196.05,0.00015628,2]
[407706464,1772696697856,196.05,0.00016088,2]
[407706465,1772696698069,196.05,0.00016547,2]
[407706466,1772696701265,1200.0,0.00016999,2]
[407706467,1772696702448,300.0,0.00016999,2]
[407706468,1772696754422,504.0,0.00014,2]
[407706469,1772696818108,504.0,0.00014,2]
[407706470,1772696844341,629.57743468,0.00012,2]
[407706471,1772696844812,500.0,0.00012,2]
[407706472,1772696844842,500.0,0.00012,2]
[407706473,1772696846137,230.6582544,0.00012,2]
[407706474,1772696846310,443.27005909,0.00012,2]
[407706475,1772696860491,201.27075793,0.00016999,5]
[407706476,1772696879172,504.0,0.00014,2]
[407706477,1772696933385,504.0,0.00014,2]
[407706478,1772696935659,200.0,0.00016989,2]
[407706479,1772696943005,463.0,0.00016973,2]
[407706480,1772696969757,504.0,0.00014,2]
[407706481,1772696987971,169.25,0.0001679,2]
[407706482,1772696997448,504.0,0.00014,2]
[407706483,1772697001283,567.0,0.00016999,2]
[407706484,1772697018266,191.82,0.00013597,2]
[407706485,1772697029596,5000.01,0.000169,2]
[407706486,1772697029621,5000.01,0.000169,2]
[407706487,1772697029648,5000.01,0.000169,2]
[407706488,1772697029673,5000.01,0.000169,2]
[407706489,1772697029699,5000.01,0.000169,2]
[407706490,1772697029724,5000.01,0.000169,2]
[407706491,1772697029751,5000.01,0.000169,2]
[407706492,1772697029775,5000.01,0.000169,2]
[407706493,1772697029802,5000.01,0.000169,2]
[407706494,1772697029829,5000.01,0.000169,2]